[Event "Early-Titled-Tuesday-Blitz-June-18-2024"]
[Site "Chess.com"]
[Date "2024.06.18"]
[Round "3"]
[White "Giantgoogachess"]
[Black "Sadykov_Ramil"]
[Result "1-0"]
[WhiteElo "2440"]
[BlackElo "2617"]
[TimeControl "180+1"]
[EndTime "8:28:55 PDT"]
[Termination "Giantgoogachess won by resignation"]

1. Nf3 {[%clk 0:03:00.9]} 1... Nf6 {[%clk 0:02:55]} 2. g3 {[%clk 0:03:00.9]}
2... b6 {[%clk 0:02:52.5]} 3. Bg2 {[%clk 0:03:01.2]} 3... Bb7 {[%clk 0:02:53.1]}
4. O-O {[%clk 0:03:01.9]} 4... c5 {[%clk 0:02:52.2]} 5. c4 {[%clk 0:03:00.1]}
5... g6 {[%clk 0:02:28.2]} 6. Nc3 {[%clk 0:02:58.8]} 6... Bg7 {[%clk 0:02:28]}
7. d3 {[%clk 0:02:51.7]} 7... O-O {[%clk 0:02:26.6]} 8. e4 {[%clk 0:02:51]} 8...
Nc6 {[%clk 0:02:23.8]} 9. Be3 {[%clk 0:02:45.7]} 9... Ng4 {[%clk 0:02:16.7]} 10.
Bg5 {[%clk 0:02:44.9]} 10... d6 {[%clk 0:01:48.4]} 11. h3 {[%clk 0:02:40.4]}
11... Nge5 {[%clk 0:01:48.4]} 12. Qd2 {[%clk 0:02:38.4]} 12... Nxf3+ {[%clk
0:01:44.1]} 13. Bxf3 {[%clk 0:02:39.3]} 13... Nd4 {[%clk 0:01:43.2]} 14. Bg2
{[%clk 0:02:39.1]} 14... a6 {[%clk 0:01:33.6]} 15. h4 {[%clk 0:02:16.1]} 15...
h5 {[%clk 0:01:26.1]} 16. Nd5 {[%clk 0:01:54.7]} 16... f6 {[%clk 0:01:12.8]} 17.
Be3 {[%clk 0:01:51.3]} 17... Nc6 {[%clk 0:01:03.1]} 18. Nf4 {[%clk 0:01:47.9]}
18... Kf7 {[%clk 0:00:58.2]} 19. e5 {[%clk 0:01:37.9]} 19... dxe5 {[%clk
0:00:33.5]} 20. Bd5+ {[%clk 0:01:37]} 20... Ke8 {[%clk 0:00:28.3]} 21. Ne6
{[%clk 0:01:26.3]} 21... Qd6 {[%clk 0:00:27.9]} 22. Nxg7+ {[%clk 0:01:25.8]}
22... Kd7 {[%clk 0:00:28.3]} 23. Ne6 {[%clk 0:01:18.8]} 23... Rfe8 {[%clk
0:00:15]} 24. a3 {[%clk 0:01:17.7]} 24... Na5 {[%clk 0:00:14.3]} 25. b4 {[%clk
0:01:15.3]} 25... Nb3 {[%clk 0:00:13.7]} 26. Qb2 {[%clk 0:01:14]} 26... Bxd5
{[%clk 0:00:12.6]} 27. cxd5 {[%clk 0:01:13.6]} 27... Nxa1 {[%clk 0:00:12.5]} 28.
bxc5 {[%clk 0:01:05.9]} 28... Qxd5 {[%clk 0:00:12.5]} 29. Qxb6 {[%clk
0:01:00.1]} 29... Reb8 {[%clk 0:00:10.6]} 30. c6+ {[%clk 0:00:50.4]} 30... Ke8
{[%clk 0:00:02.4]} 31. Nc7+ {[%clk 0:00:49.9]} 31... Kf7 {[%clk 0:00:02.8]} 32.
Nxd5 {[%clk 0:00:48.7]} 32... Rxb6 {[%clk 0:00:03.1]} 33. Nxb6 {[%clk
0:00:49.6]} 33... Rb8 {[%clk 0:00:03]} 34. c7 {[%clk 0:00:49.8]} 1-0

[Event "Early-Titled-Tuesday-Blitz-June-18-2024"]
[Site "Chess.com"]
[Date "2024.06.18"]
[Round "3"]
[White "Defenstrator"]
[Black "biostatistician"]
[Result "0-1"]
[WhiteElo "2395"]
[BlackElo "2623"]
[TimeControl "180+1"]
[EndTime "8:28:56 PDT"]
[Termination "biostatistician won on time"]

1. Nf3 {[%clk 0:02:59.8]} 1... Nf6 {[%clk 0:03:00]} 2. g3 {[%clk 0:02:56.8]}
2... b6 {[%clk 0:03:00.3]} 3. Bg2 {[%clk 0:02:56.8]} 3... Bb7 {[%clk 0:03:01.2]}
4. O-O {[%clk 0:02:54]} 4... g6 {[%clk 0:03:01.4]} 5. c4 {[%clk 0:02:51.9]} 5...
Bg7 {[%clk 0:03:01.5]} 6. Nc3 {[%clk 0:02:51.3]} 6... O-O {[%clk 0:03:01.8]} 7.
d4 {[%clk 0:02:41.5]} 7... Ne4 {[%clk 0:02:59.5]} 8. Nxe4 {[%clk 0:02:33.2]}
8... Bxe4 {[%clk 0:03:00.4]} 9. Bf4 {[%clk 0:02:24.6]} 9... c5 {[%clk
0:03:00.1]} 10. Rc1 {[%clk 0:02:11.1]} 10... cxd4 {[%clk 0:02:59.5]} 11. Bxb8
{[%clk 0:01:37]} 11... Bxf3 {[%clk 0:02:37.5]} 12. Bxf3 {[%clk 0:01:21.5]} 12...
Rxb8 {[%clk 0:02:37.8]} 13. Qa4 {[%clk 0:01:20.1]} 13... Qc7 {[%clk 0:02:36.2]}
14. b4 {[%clk 0:01:09.3]} 14... a5 {[%clk 0:02:30.2]} 15. a3 {[%clk 0:01:01.9]}
15... d6 {[%clk 0:02:24]} 16. Rc2 {[%clk 0:00:53.1]} 16... Rfd8 {[%clk
0:02:23.2]} 17. Rfc1 {[%clk 0:00:53.1]} 17... Qd7 {[%clk 0:02:21.9]} 18. Bc6
{[%clk 0:00:47.6]} 18... Qa7 {[%clk 0:02:15.3]} 19. Bd5 {[%clk 0:00:41]} 19...
e6 {[%clk 0:02:09.5]} 20. Bf3 {[%clk 0:00:39.9]} 20... Bh6 {[%clk 0:02:04]} 21.
Rd1 {[%clk 0:00:38.3]} 21... Bg7 {[%clk 0:02:00]} 22. h4 {[%clk 0:00:35.9]}
22... Rdc8 {[%clk 0:01:55.6]} 23. h5 {[%clk 0:00:32.4]} 23... Rc7 {[%clk
0:01:54]} 24. hxg6 {[%clk 0:00:32.2]} 24... hxg6 {[%clk 0:01:53.9]} 25. Kg2
{[%clk 0:00:26.5]} 25... Rbc8 {[%clk 0:01:53.8]} 26. Qb5 {[%clk 0:00:24]} 26...
axb4 {[%clk 0:01:50.5]} 27. axb4 {[%clk 0:00:24.3]} 27... d5 {[%clk 0:01:46.5]}
28. Rdc1 {[%clk 0:00:15.1]} 28... Bh6 {[%clk 0:01:40]} 29. Rd1 {[%clk
0:00:15.5]} 29... Rxc4 {[%clk 0:01:37.9]} 30. Rxc4 {[%clk 0:00:16.1]} 30... Rxc4
{[%clk 0:01:38.8]} 31. Qe8+ {[%clk 0:00:15.5]} 31... Kg7 {[%clk 0:01:39.1]} 32.
Rh1 {[%clk 0:00:11.5]} 32... Qc7 {[%clk 0:01:06.1]} 33. Rxh6 {[%clk 0:00:11.4]}
33... Kxh6 {[%clk 0:01:07]} 34. Qh8+ {[%clk 0:00:11.7]} 34... Kg5 {[%clk
0:01:07.6]} 35. Qh4+ {[%clk 0:00:11.8]} 35... Kf5 {[%clk 0:01:08.1]} 36. Qg4+
{[%clk 0:00:10.3]} 36... Kf6 {[%clk 0:01:05.7]} 37. Qh4+ {[%clk 0:00:04]} 37...
Kg7 {[%clk 0:01:05.7]} 0-1

[Event "Early-Titled-Tuesday-Blitz-June-18-2024"]
[Site "Chess.com"]
[Date "2024.06.18"]
[Round "3"]
[White "Bkmzzzzz"]
[Black "marcocordeiro2013"]
[Result "1-0"]
[WhiteElo "2372"]
[BlackElo "1962"]
[TimeControl "180+1"]
[EndTime "8:28:56 PDT"]
[Termination "Bkmzzzzz won on time"]

1. e4 {[%clk 0:03:00.9]} 1... c5 {[%clk 0:02:59.4]} 2. Nf3 {[%clk 0:02:59.6]}
2... Nc6 {[%clk 0:02:59.5]} 3. Bb5 {[%clk 0:02:59.1]} 3... Qb6 {[%clk
0:02:58.3]} 4. Nc3 {[%clk 0:02:56]} 4... e6 {[%clk 0:02:57.8]} 5. O-O {[%clk
0:02:49.2]} 5... a6 {[%clk 0:02:56.5]} 6. Bxc6 {[%clk 0:02:49.2]} 6... Qxc6
{[%clk 0:02:57]} 7. d3 {[%clk 0:02:37]} 7... Nf6 {[%clk 0:02:53.9]} 8. b3 {[%clk
0:02:35.1]} 8... Be7 {[%clk 0:02:48.9]} 9. Bb2 {[%clk 0:02:34.7]} 9... d5 {[%clk
0:02:48.6]} 10. exd5 {[%clk 0:02:14.5]} 10... exd5 {[%clk 0:02:47.9]} 11. d4
{[%clk 0:02:15.1]} 11... O-O {[%clk 0:02:39.9]} 12. h3 {[%clk 0:02:10.8]} 12...
c4 {[%clk 0:02:29.6]} 13. Ne5 {[%clk 0:02:08]} 13... Qc7 {[%clk 0:02:29.2]} 14.
Qf3 {[%clk 0:02:04.5]} 14... Be6 {[%clk 0:02:25.1]} 15. Rfe1 {[%clk 0:02:01.1]}
15... b5 {[%clk 0:02:16.5]} 16. a3 {[%clk 0:01:37.9]} 16... Rad8 {[%clk
0:02:10.5]} 17. Rad1 {[%clk 0:01:36.6]} 17... cxb3 {[%clk 0:01:47.5]} 18. cxb3
{[%clk 0:01:36.4]} 18... Bd6 {[%clk 0:01:28.8]} 19. Rc1 {[%clk 0:01:26]} 19...
Qb6 {[%clk 0:01:08.2]} 20. Ne2 {[%clk 0:01:13.5]} 20... Ne4 {[%clk 0:01:01]} 21.
Nf4 {[%clk 0:01:10.1]} 21... Bxe5 {[%clk 0:00:54.3]} 22. dxe5 {[%clk 0:01:11]}
22... Rc8 {[%clk 0:00:37.7]} 23. b4 {[%clk 0:00:51.9]} 23... Nd2 {[%clk
0:00:32.6]} 24. Qd3 {[%clk 0:00:47.4]} 24... Nc4 {[%clk 0:00:30]} 25. Bd4 {[%clk
0:00:46.5]} 25... Qd8 {[%clk 0:00:27.7]} 26. Bc5 {[%clk 0:00:45.3]} 26... Re8
{[%clk 0:00:25.7]} 27. Rcd1 {[%clk 0:00:44.1]} 27... Nb2 {[%clk 0:00:23.9]} 28.
Qg3 {[%clk 0:00:41.9]} 28... Nxd1 {[%clk 0:00:23.1]} 29. Rxd1 {[%clk 0:00:42.8]}
29... Qd7 {[%clk 0:00:20]} 30. Nh5 {[%clk 0:00:42.7]} 1-0

[Event "Early-Titled-Tuesday-Blitz-June-18-2024"]
[Site "Chess.com"]
[Date "2024.06.18"]
[Round "3"]
[White "Mikozovna"]
[Black "falzehope0"]
[Result "0-1"]
[WhiteElo "2619"]
[BlackElo "2449"]
[TimeControl "180+1"]
[EndTime "8:28:59 PDT"]
[Termination "falzehope0 won by resignation"]

1. Nf3 {[%clk 0:03:00.9]} 1... e6 {[%clk 0:02:59.1]} 2. c4 {[%clk 0:02:57.8]}
2... d5 {[%clk 0:02:58.7]} 3. e3 {[%clk 0:02:54.4]} 3... f5 {[%clk 0:02:57.6]}
4. b3 {[%clk 0:02:53.5]} 4... Nf6 {[%clk 0:02:56.6]} 5. Bb2 {[%clk 0:02:53.3]}
5... Bd6 {[%clk 0:02:55.8]} 6. Be2 {[%clk 0:02:43.3]} 6... O-O {[%clk
0:02:54.8]} 7. Qc2 {[%clk 0:02:39.8]} 7... c6 {[%clk 0:02:53.6]} 8. d3 {[%clk
0:02:39.9]} 8... Nbd7 {[%clk 0:02:52.1]} 9. Nbd2 {[%clk 0:02:39.7]} 9... a6
{[%clk 0:02:50.5]} 10. a3 {[%clk 0:02:35.4]} 10... Qe7 {[%clk 0:02:48.3]} 11. b4
{[%clk 0:02:35.3]} 11... e5 {[%clk 0:02:43.8]} 12. Nb3 {[%clk 0:02:12.4]} 12...
e4 {[%clk 0:02:39]} 13. Nfd4 {[%clk 0:02:07]} 13... Ne5 {[%clk 0:02:38]} 14.
O-O-O {[%clk 0:01:43.9]} 14... Bd7 {[%clk 0:02:22.2]} 15. Kb1 {[%clk 0:01:43.3]}
15... Neg4 {[%clk 0:02:15.7]} 16. Bxg4 {[%clk 0:01:42.2]} 16... Nxg4 {[%clk
0:02:13.9]} 17. h3 {[%clk 0:01:24.5]} 17... Ne5 {[%clk 0:02:12.8]} 18. dxe4
{[%clk 0:01:16.8]} 18... fxe4 {[%clk 0:02:06.9]} 19. c5 {[%clk 0:01:13.4]} 19...
Bc7 {[%clk 0:02:04.7]} 20. Rdf1 {[%clk 0:01:12.8]} 20... Nd3 {[%clk 0:02:00.4]}
21. Bc3 {[%clk 0:01:09.8]} 21... b6 {[%clk 0:01:49.7]} 22. cxb6 {[%clk
0:01:07.7]} 22... Bxb6 {[%clk 0:01:50.6]} 23. Nc1 {[%clk 0:01:07.8]} 23... Ne5
{[%clk 0:01:48.9]} 24. f4 {[%clk 0:01:02.5]} 24... Nc4 {[%clk 0:01:47.6]} 25.
Qb3 {[%clk 0:00:53.4]} 25... Nxe3 {[%clk 0:01:41.4]} 26. Re1 {[%clk 0:00:53.1]}
26... Nc4 {[%clk 0:01:18.9]} 27. Rhf1 {[%clk 0:00:45.8]} 27... a5 {[%clk
0:01:05.3]} 28. Nc2 {[%clk 0:00:42.4]} 28... axb4 {[%clk 0:00:58.7]} 29. axb4
{[%clk 0:00:42]} 29... Be6 {[%clk 0:00:53]} 30. Ne2 {[%clk 0:00:26.5]} 30... d4
{[%clk 0:00:45.1]} 31. Nexd4 {[%clk 0:00:25.3]} 31... Bxd4 {[%clk 0:00:43.5]}
32. Nxd4 {[%clk 0:00:23.4]} 32... Na3+ {[%clk 0:00:43]} 33. Kb2 {[%clk
0:00:20.5]} 33... Bxb3 {[%clk 0:00:41.9]} 34. Kxb3 {[%clk 0:00:21.4]} 34... Nb5
{[%clk 0:00:40.1]} 35. Nxb5 {[%clk 0:00:17.7]} 35... Qf7+ {[%clk 0:00:37.9]} 0-1

[Event "Early-Titled-Tuesday-Blitz-June-18-2024"]
[Site "Chess.com"]
[Date "2024.06.18"]
[Round "3"]
[White "esskeettit"]
[Black "ejalmedina"]
[Result "1-0"]
[WhiteElo "2508"]
[BlackElo "2305"]
[TimeControl "180+1"]
[EndTime "8:29:04 PDT"]
[Termination "esskeettit won on time"]

1. d4 {[%clk 0:03:00.9]} 1... d5 {[%clk 0:02:59.1]} 2. c4 {[%clk 0:03:01.2]}
2... e6 {[%clk 0:02:59.5]} 3. Nc3 {[%clk 0:03:01.7]} 3... a6 {[%clk 0:03:00]} 4.
cxd5 {[%clk 0:03:00.2]} 4... exd5 {[%clk 0:03:00.9]} 5. Nf3 {[%clk 0:03:00.5]}
5... c6 {[%clk 0:03:00.7]} 6. Bg5 {[%clk 0:02:58.8]} 6... Be7 {[%clk 0:03:00.2]}
7. Bxe7 {[%clk 0:02:58.1]} 7... Nxe7 {[%clk 0:02:59.6]} 8. e3 {[%clk 0:02:58.8]}
8... Bf5 {[%clk 0:02:54.1]} 9. Bd3 {[%clk 0:02:59]} 9... O-O {[%clk 0:02:46.5]}
10. O-O {[%clk 0:02:59.1]} 10... Nd7 {[%clk 0:02:43.3]} 11. h3 {[%clk
0:02:58.1]} 11... Re8 {[%clk 0:02:38]} 12. Rb1 {[%clk 0:02:55]} 12... g6 {[%clk
0:02:28.8]} 13. Bxf5 {[%clk 0:02:53.3]} 13... Nxf5 {[%clk 0:02:28.5]} 14. Qd3
{[%clk 0:02:52.8]} 14... Nd6 {[%clk 0:02:28.3]} 15. Nd2 {[%clk 0:02:47.5]} 15...
Qe7 {[%clk 0:02:25.6]} 16. Rfe1 {[%clk 0:02:45.1]} 16... Rad8 {[%clk 0:02:24.2]}
17. a3 {[%clk 0:02:34.3]} 17... Qg5 {[%clk 0:02:16.8]} 18. Nf3 {[%clk
0:02:31.9]} 18... Qh5 {[%clk 0:02:11.4]} 19. Na4 {[%clk 0:02:24.2]} 19... f6
{[%clk 0:01:47]} 20. Nc5 {[%clk 0:02:03.7]} 20... Re7 {[%clk 0:01:36.3]} 21.
Rbc1 {[%clk 0:01:52.8]} 21... g5 {[%clk 0:01:28.7]} 22. Nh2 {[%clk 0:01:49.5]}
22... Rde8 {[%clk 0:01:12.3]} 23. Ng4 {[%clk 0:01:43.9]} 23... Kg7 {[%clk
0:01:05.5]} 24. b4 {[%clk 0:01:35.3]} 24... Qf7 {[%clk 0:00:34.5]} 25. Nh2
{[%clk 0:01:31]} 25... h5 {[%clk 0:00:33.1]} 26. Nf1 {[%clk 0:01:26.1]} 26... g4
{[%clk 0:00:27.3]} 27. h4 {[%clk 0:01:23.3]} 27... Qg6 {[%clk 0:00:23.8]} 28.
Ng3 {[%clk 0:01:19.6]} 28... Nxc5 {[%clk 0:00:18]} 29. Qxg6+ {[%clk 0:01:15.9]}
29... Kxg6 {[%clk 0:00:18.9]} 30. bxc5 {[%clk 0:01:12.8]} 30... Nc4 {[%clk
0:00:13.5]} 31. Rc3 {[%clk 0:01:04.9]} 31... f5 {[%clk 0:00:12.9]} 32. Ne2
{[%clk 0:01:04.2]} 32... Kh6 {[%clk 0:00:10]} 33. Nf4 {[%clk 0:01:03.5]} 33...
Re4 {[%clk 0:00:08.6]} 34. Rb1 {[%clk 0:01:01.8]} 34... R8e7 {[%clk 0:00:08.3]}
35. a4 {[%clk 0:00:56]} 35... Na5 {[%clk 0:00:02.2]} 36. Nd3 {[%clk 0:00:50.6]}
36... R4e6 {[%clk 0:00:01]} 37. g3 {[%clk 0:00:50.3]} 1-0

[Event "Early-Titled-Tuesday-Blitz-June-18-2024"]
[Site "Chess.com"]
[Date "2024.06.18"]
[Round "3"]
[White "Squirlolz"]
[Black "Individoom"]
[Result "0-1"]
[WhiteElo "2502"]
[BlackElo "2791"]
[TimeControl "180+1"]
[EndTime "8:29:05 PDT"]
[Termination "Individoom won on time"]

1. Nf3 {[%clk 0:02:59.9]} 1... Nf6 {[%clk 0:02:55.2]} 2. g3 {[%clk 0:02:58.1]}
2... g6 {[%clk 0:02:55.1]} 3. Bg2 {[%clk 0:02:59]} 3... Bg7 {[%clk 0:02:55]} 4.
O-O {[%clk 0:02:59.9]} 4... O-O {[%clk 0:02:55.4]} 5. c4 {[%clk 0:03:00.5]} 5...
d6 {[%clk 0:02:54.8]} 6. d4 {[%clk 0:02:59.1]} 6... Nbd7 {[%clk 0:02:54.6]} 7.
Nc3 {[%clk 0:02:58.1]} 7... e5 {[%clk 0:02:54.8]} 8. dxe5 {[%clk 0:02:58.5]}
8... dxe5 {[%clk 0:02:54.1]} 9. h3 {[%clk 0:02:56.8]} 9... h6 {[%clk 0:02:45.9]}
10. Be3 {[%clk 0:02:56.9]} 10... c6 {[%clk 0:02:44.4]} 11. Nd2 {[%clk
0:02:51.5]} 11... Qe7 {[%clk 0:02:41.9]} 12. Nde4 {[%clk 0:02:48.5]} 12... Nxe4
{[%clk 0:02:40.2]} 13. Nxe4 {[%clk 0:02:49.4]} 13... Rd8 {[%clk 0:02:37.2]} 14.
Qd6 {[%clk 0:02:46.9]} 14... Qxd6 {[%clk 0:02:09.9]} 15. Nxd6 {[%clk 0:02:47.8]}
15... Nb6 {[%clk 0:01:51.4]} 16. Rfd1 {[%clk 0:02:07.4]} 16... Bf8 {[%clk
0:01:38.7]} 17. c5 {[%clk 0:01:29.9]} 17... Na4 {[%clk 0:01:35.2]} 18. Rd2
{[%clk 0:01:17]} 18... Rb8 {[%clk 0:01:30.5]} 19. b3 {[%clk 0:01:03.6]} 19...
Nc3 {[%clk 0:01:26.7]} 20. Rc1 {[%clk 0:01:02]} 20... Nd5 {[%clk 0:01:20.4]} 21.
Bxd5 {[%clk 0:01:01.8]} 21... cxd5 {[%clk 0:01:20.5]} 22. Rxd5 {[%clk
0:01:02.7]} 22... Bxh3 {[%clk 0:01:05.8]} 23. b4 {[%clk 0:00:46]} 23... Bg7
{[%clk 0:01:00.2]} 24. b5 {[%clk 0:00:40.4]} 24... Be6 {[%clk 0:00:59.6]} 25.
Rd2 {[%clk 0:00:40.4]} 25... Rd7 {[%clk 0:00:59.2]} 26. f3 {[%clk 0:00:24.9]}
26... Bf8 {[%clk 0:00:54.9]} 27. Kf2 {[%clk 0:00:24.2]} 27... b6 {[%clk
0:00:49.3]} 28. Rcd1 {[%clk 0:00:12.4]} 28... bxc5 {[%clk 0:00:47.6]} 29. Bxc5
{[%clk 0:00:13.3]} 29... Rbd8 {[%clk 0:00:44.6]} 30. a4 {[%clk 0:00:07]} 30...
Bb3 {[%clk 0:00:44]} 31. Rb1 {[%clk 0:00:07]} 31... Bxa4 {[%clk 0:00:43.8]} 32.
Ke3 {[%clk 0:00:02.3]} 32... Bxd6 {[%clk 0:00:42.2]} 33. Bxd6 {[%clk 0:00:02.4]}
33... Rxd6 {[%clk 0:00:42.5]} 0-1

[Event "Early-Titled-Tuesday-Blitz-June-18-2024"]
[Site "Chess.com"]
[Date "2024.06.18"]
[Round "3"]
[White "Bob_2004"]
[Black "TigrVShlyape"]
[Result "0-1"]
[WhiteElo "2760"]
[BlackElo "2994"]
[TimeControl "180+1"]
[EndTime "8:29:06 PDT"]
[Termination "TigrVShlyape won by resignation"]

1. d4 {[%clk 0:03:00.9]} 1... d5 {[%clk 0:02:58.8]} 2. c4 {[%clk 0:03:01.4]}
2... c6 {[%clk 0:02:58.9]} 3. Nc3 {[%clk 0:03:01.9]} 3... Nf6 {[%clk 0:02:59.1]}
4. e3 {[%clk 0:03:02.4]} 4... g6 {[%clk 0:02:58.4]} 5. Nf3 {[%clk 0:03:02.5]}
5... Bg7 {[%clk 0:02:58.7]} 6. Bd3 {[%clk 0:03:03.1]} 6... O-O {[%clk
0:02:58.9]} 7. O-O {[%clk 0:03:03.7]} 7... a6 {[%clk 0:02:52.5]} 8. a4 {[%clk
0:03:00.4]} 8... a5 {[%clk 0:02:44.8]} 9. b3 {[%clk 0:02:58.7]} 9... Bg4 {[%clk
0:02:43.5]} 10. h3 {[%clk 0:02:58.8]} 10... Bxf3 {[%clk 0:02:43.2]} 11. Qxf3
{[%clk 0:02:59.7]} 11... e6 {[%clk 0:02:43.6]} 12. Ba3 {[%clk 0:02:59.5]} 12...
Re8 {[%clk 0:02:43.2]} 13. Rfd1 {[%clk 0:03:00.1]} 13... Na6 {[%clk 0:02:42.8]}
14. Rac1 {[%clk 0:02:52.4]} 14... Bf8 {[%clk 0:02:39.9]} 15. Bb2 {[%clk
0:02:51.5]} 15... Nb4 {[%clk 0:02:38.4]} 16. Bb1 {[%clk 0:02:51.1]} 16... Bg7
{[%clk 0:02:38.1]} 17. Rd2 {[%clk 0:02:42.5]} 17... Qb6 {[%clk 0:02:33.6]} 18.
Rcd1 {[%clk 0:02:39.9]} 18... Rad8 {[%clk 0:02:30.1]} 19. Ba3 {[%clk 0:02:34.5]}
19... Rd7 {[%clk 0:02:26.4]} 20. Qe2 {[%clk 0:02:22.6]} 20... Red8 {[%clk
0:02:25.2]} 21. c5 {[%clk 0:02:20.7]} 21... Qa7 {[%clk 0:02:23.8]} 22. Bxb4
{[%clk 0:02:16.8]} 22... axb4 {[%clk 0:02:23.3]} 23. Na2 {[%clk 0:02:17.7]}
23... Qa5 {[%clk 0:02:22.9]} 24. f4 {[%clk 0:02:18.3]} 24... Bf8 {[%clk
0:02:20.1]} 25. Rc2 {[%clk 0:02:14.9]} 25... b6 {[%clk 0:02:18.5]} 26. cxb6
{[%clk 0:01:32.9]} 26... Qxb6 {[%clk 0:02:18.1]} 27. Nc1 {[%clk 0:01:33.5]}
27... Ne4 {[%clk 0:02:16.7]} 28. Na2 {[%clk 0:01:11.3]} 28... c5 {[%clk
0:02:16.3]} 29. Rcc1 {[%clk 0:01:10.5]} 29... cxd4 {[%clk 0:02:12.4]} 30. exd4
{[%clk 0:01:09.2]} 30... Nf6 {[%clk 0:02:06.5]} 31. Qc2 {[%clk 0:01:00.4]} 31...
h5 {[%clk 0:01:55.9]} 32. Qc6 {[%clk 0:00:59.3]} 32... Qb8 {[%clk 0:01:55.6]}
33. Rf1 {[%clk 0:00:48.2]} 33... Bd6 {[%clk 0:01:54.9]} 34. Rce1 {[%clk
0:00:33.7]} 34... Rc8 {[%clk 0:01:42.7]} 35. Qa6 {[%clk 0:00:32.4]} 35... Kg7
{[%clk 0:01:36.3]} 36. Re5 {[%clk 0:00:25.7]} 36... Bxe5 {[%clk 0:01:32.7]} 37.
fxe5 {[%clk 0:00:26.6]} 37... Ne4 {[%clk 0:01:32.4]} 38. Qd3 {[%clk 0:00:20.7]}
38... Qb6 {[%clk 0:01:27.8]} 39. Kh2 {[%clk 0:00:19.2]} 39... Rdc7 {[%clk
0:01:20.7]} 40. Qe3 {[%clk 0:00:15.9]} 40... h4 {[%clk 0:01:12.3]} 41. Rf4
{[%clk 0:00:05.9]} 41... Ng3 {[%clk 0:01:09]} 42. Qf2 {[%clk 0:00:03.1]} 42...
Nf5 {[%clk 0:01:07.9]} 43. Bxf5 {[%clk 0:00:03.1]} 43... exf5 {[%clk 0:01:08.1]}
44. Rf3 {[%clk 0:00:03.4]} 44... Rc2 {[%clk 0:01:07.2]} 45. Qxh4 {[%clk
0:00:03.9]} 45... Rxa2 {[%clk 0:01:06.6]} 46. Re3 {[%clk 0:00:02.6]} 0-1

[Event "Early-Titled-Tuesday-Blitz-June-18-2024"]
[Site "Chess.com"]
[Date "2024.06.18"]
[Round "3"]
[White "aeiiuu"]
[Black "KNVB"]
[Result "1-0"]
[WhiteElo "2596"]
[BlackElo "2807"]
[TimeControl "180+1"]
[EndTime "8:29:07 PDT"]
[Termination "aeiiuu won on time"]

1. e4 {[%clk 0:03:00.2]} 1... e5 {[%clk 0:03:00.1]} 2. Nf3 {[%clk 0:03:00.4]}
2... Nc6 {[%clk 0:03:00.5]} 3. Bb5 {[%clk 0:02:59.6]} 3... Qf6 {[%clk
0:03:00.7]} 4. Nc3 {[%clk 0:02:59.1]} 4... Bd6 {[%clk 0:03:00.6]} 5. Nd5 {[%clk
0:02:59.2]} 5... Qg6 {[%clk 0:03:01]} 6. d3 {[%clk 0:02:58.5]} 6... Nge7 {[%clk
0:03:01]} 7. Bg5 {[%clk 0:02:56.4]} 7... Nxd5 {[%clk 0:02:59.4]} 8. exd5 {[%clk
0:02:56.6]} 8... Nd4 {[%clk 0:02:59.9]} 9. Nxd4 {[%clk 0:02:54.4]} 9... Qxg5
{[%clk 0:02:58.6]} 10. Nf3 {[%clk 0:02:54.6]} 10... Qxg2 {[%clk 0:01:53.9]} 11.
Rg1 {[%clk 0:02:52.3]} 11... Qh3 {[%clk 0:01:54.4]} 12. Rxg7 {[%clk 0:02:53]}
12... a6 {[%clk 0:01:55]} 13. Ba4 {[%clk 0:02:42.4]} 13... b5 {[%clk 0:01:55.3]}
14. Bb3 {[%clk 0:02:42.8]} 14... Bb7 {[%clk 0:01:55.9]} 15. Rg3 {[%clk
0:02:08.2]} 15... Qh5 {[%clk 0:01:21.1]} 16. Ng5 {[%clk 0:01:57.5]} 16... Qxh2
{[%clk 0:01:15.9]} 17. Qf3 {[%clk 0:01:52.6]} 17... O-O-O {[%clk 0:01:01]} 18.
O-O-O {[%clk 0:00:53.9]} 18... e4 {[%clk 0:00:57.5]} 19. Nxe4 {[%clk 0:00:51.8]}
19... Bxg3 {[%clk 0:00:56.7]} 20. Rh1 {[%clk 0:00:50.8]} 20... Bf4+ {[%clk
0:00:19.9]} 21. Kd1 {[%clk 0:00:50.3]} 21... Qxh1+ {[%clk 0:00:08.6]} 22. Qxh1
{[%clk 0:00:50.1]} 22... f5 {[%clk 0:00:06.9]} 23. Nc5 {[%clk 0:00:50.4]} 23...
Bd6 {[%clk 0:00:04.1]} 24. d4 {[%clk 0:00:47.4]} 24... h5 {[%clk 0:00:02.6]} 25.
a4 {[%clk 0:00:42.7]} 25... bxa4 {[%clk 0:00:01.6]} 26. Bxa4 {[%clk 0:00:43.1]}
26... h4 {[%clk 0:00:01.8]} 27. Qh3 {[%clk 0:00:43.5]} 27... Ba8 {[%clk
0:00:01.1]} 28. c4 {[%clk 0:00:42.5]} 28... Rdg8 {[%clk 0:00:01.3]} 29. Bxd7+
{[%clk 0:00:41.3]} 29... Kd8 {[%clk 0:00:01.8]} 30. Bxf5 {[%clk 0:00:41]} 30...
Rf8 {[%clk 0:00:01.6]} 31. Ne6+ {[%clk 0:00:41.1]} 31... Ke7 {[%clk 0:00:02.3]}
32. Nxf8 {[%clk 0:00:41.6]} 32... Kxf8 {[%clk 0:00:03.1]} 33. Be6 {[%clk
0:00:39.2]} 33... Ke7 {[%clk 0:00:01.1]} 34. Qg4 {[%clk 0:00:39]} 34... Kd8
{[%clk 0:00:01]} 35. Qg7 {[%clk 0:00:38.2]} 1-0

[Event "Early-Titled-Tuesday-Blitz-June-18-2024"]
[Site "Chess.com"]
[Date "2024.06.18"]
[Round "3"]
[White "Sokoloco"]
[Black "doublesik"]
[Result "0-1"]
[WhiteElo "2728"]
[BlackElo "2564"]
[TimeControl "180+1"]
[EndTime "8:29:10 PDT"]
[Termination "doublesik won by checkmate"]

1. b3 {[%clk 0:03:00.9]} 1... e5 {[%clk 0:02:53.5]} 2. Bb2 {[%clk 0:02:58.1]}
2... Nc6 {[%clk 0:02:51.4]} 3. e3 {[%clk 0:02:58.7]} 3... Nf6 {[%clk 0:02:48.2]}
4. Nf3 {[%clk 0:02:58.8]} 4... Bd6 {[%clk 0:02:39.7]} 5. d4 {[%clk 0:02:58.7]}
5... e4 {[%clk 0:02:34.8]} 6. Nfd2 {[%clk 0:02:58.8]} 6... Be7 {[%clk
0:02:20.6]} 7. c4 {[%clk 0:02:57.4]} 7... d5 {[%clk 0:02:13.6]} 8. cxd5 {[%clk
0:02:55.5]} 8... Nb4 {[%clk 0:02:12.6]} 9. Nc3 {[%clk 0:02:47.2]} 9... O-O
{[%clk 0:02:06.9]} 10. Ncxe4 {[%clk 0:02:41.6]} 10... Nxe4 {[%clk 0:01:58.3]}
11. Nxe4 {[%clk 0:02:42.5]} 11... Bf5 {[%clk 0:01:58.7]} 12. f3 {[%clk 0:02:16]}
12... Nxd5 {[%clk 0:01:43.6]} 13. Kf2 {[%clk 0:02:00.7]} 13... Re8 {[%clk
0:01:31.4]} 14. Bd3 {[%clk 0:01:59.6]} 14... Bg6 {[%clk 0:01:06]} 15. Re1 {[%clk
0:01:50.1]} 15... Bb4 {[%clk 0:00:58.8]} 16. Re2 {[%clk 0:01:46.2]} 16... Qh4+
{[%clk 0:00:47.7]} 17. Ng3 {[%clk 0:01:44.7]} 17... Qxh2 {[%clk 0:00:39.3]} 18.
Bxg6 {[%clk 0:01:08.8]} 18... hxg6 {[%clk 0:00:40.2]} 19. Qd3 {[%clk 0:01:04.9]}
19... Bd6 {[%clk 0:00:29.7]} 20. Ne4 {[%clk 0:00:45.3]} 20... Rxe4 {[%clk
0:00:14.6]} 21. fxe4 {[%clk 0:00:38.9]} 21... Bg3+ {[%clk 0:00:14.5]} 22. Kf3
{[%clk 0:00:38.4]} 22... Bh4 {[%clk 0:00:13.7]} 23. Rd2 {[%clk 0:00:25.6]} 23...
Qg3+ {[%clk 0:00:12.4]} 24. Ke2 {[%clk 0:00:26.2]} 24... Nb4 {[%clk 0:00:09.2]}
25. Qc4 {[%clk 0:00:13.8]} 25... Qf2+ {[%clk 0:00:06.8]} 26. Kd1 {[%clk
0:00:14.4]} 26... Qe1# {[%clk 0:00:07.4]} 0-1